[Event "Titled Tuesday Blitz March 22 Early 2022"]
[White "Tay, Junior"]
[Black "Starozhilov, Leonid"]
[WhiteFideId "5800439"]
[BlackFideId "14106752"]
[WhiteElo "2216"]
[BlackElo "2414"]
[Result "0-1"]
[Round "01"]
[TimeControl "180+1"]
[Date "2022.03.22"]
[WhiteClock "0:00:15"]
[BlackClock "0:00:02"]

1. e4 {[%clk 0:03:00]}  c5 {[%clk 0:02:59]} 2. Nf3 {[%clk 0:03:00]}  e6 {[%clk 0:02:59]} 3. d4 {[%clk 0:03:00]}  cxd4 {[%clk 0:02:59]} 4. Bg5 {[%clk 0:03:00]}  Qb6 {[%clk 0:02:57]} 5. Qxd4 {[%clk 0:02:59]}  Qxd4 {[%clk 0:02:47]} 6. Nxd4 {[%clk 0:03:00]}  a6 {[%clk 0:02:48]} 7. Nd2 {[%clk 0:03:01]}  Nc6 {[%clk 0:02:25]} 8. Nxc6 {[%clk 0:03:00]}  bxc6 {[%clk 0:02:26]} 9. Nc4 {[%clk 0:03:00]}  Rb8 {[%clk 0:02:14]} 10. Bf4 {[%clk 0:02:52]}  Rb5 {[%clk 0:01:51]} 11. O-O-O {[%clk 0:02:41]}  Nf6 {[%clk 0:01:33]} 12. f3 {[%clk 0:02:38]}  d5 {[%clk 0:01:26]} 13. Nd6+ {[%clk 0:02:23]}  Bxd6 {[%clk 0:01:25]} 14. Bxd6 {[%clk 0:02:24]}  Rb6 {[%clk 0:01:18]} 15. a4 {[%clk 0:02:06]}  dxe4 {[%clk 0:00:37]} 16. Bc7 {[%clk 0:02:06]}  Rb7 {[%clk 0:00:37]} 17. Rd8+ {[%clk 0:01:56]}  Ke7 {[%clk 0:00:37]} 18. Rxh8 {[%clk 0:01:57]}  Rxc7 {[%clk 0:00:37]} 19. Be2 {[%clk 0:01:51]}  c5 {[%clk 0:00:36]} 20. Rd1 {[%clk 0:01:47]}  h6 {[%clk 0:00:27]} 21. fxe4 {[%clk 0:01:27]}  Nxe4 {[%clk 0:00:24]} 22. Bf3 {[%clk 0:01:26]}  Nd6 {[%clk 0:00:22]} 23. Rg8 {[%clk 0:01:18]}  g6 {[%clk 0:00:21]} 24. h4 {[%clk 0:01:16]}  h5 {[%clk 0:00:20]} 25. g4 {[%clk 0:01:14]}  hxg4 {[%clk 0:00:19]} 26. Bxg4 {[%clk 0:01:15]}  Bb7 {[%clk 0:00:19]} 27. h5 {[%clk 0:01:15]}  gxh5 {[%clk 0:00:19]} 28. Bxh5 {[%clk 0:01:16]}  c4 {[%clk 0:00:19]} 29. Rg7 {[%clk 0:01:06]}  Be4 {[%clk 0:00:16]} 30. Rg4 {[%clk 0:00:56]}  Bf3 {[%clk 0:00:13]} 31. Rgg1 {[%clk 0:00:56]}  Bxd1 {[%clk 0:00:13]} 32. Rxd1 {[%clk 0:00:56]}  Nf5 {[%clk 0:00:11]} 33. Be2 {[%clk 0:00:48]}  Ne3 {[%clk 0:00:10]} 34. Rg1 {[%clk 0:00:46]}  Nd5 {[%clk 0:00:06]} 35. Rg4 {[%clk 0:00:43]}  c3 {[%clk 0:00:06]} 36. b3 {[%clk 0:00:43]}  a5 {[%clk 0:00:06]} 37. Bc4 {[%clk 0:00:37]}  f5 {[%clk 0:00:05]} 38. Rd4 {[%clk 0:00:35]}  Nb4 {[%clk 0:00:05]} 39. Bb5 {[%clk 0:00:32]}  Kf6 {[%clk 0:00:05]} 40. Rd8 {[%clk 0:00:29]}  Rc5 {[%clk 0:00:03]} 41. Ra8 {[%clk 0:00:28]}  Re5 {[%clk 0:00:02]} 42. Kd1 {[%clk 0:00:28]}  Rd5+ {[%clk 0:00:03]} 43. Kc1 {[%clk 0:00:28]}  Rd2 {[%clk 0:00:04]} 44. Rxa5 {[%clk 0:00:24]}  Rxc2+ {[%clk 0:00:03]} 45. Kd1 {[%clk 0:00:24]}  Rd2+ {[%clk 0:00:03]} 46. Kc1 {[%clk 0:00:24]}  Na2+ {[%clk 0:00:03]} 47. Kb1 {[%clk 0:00:24]}  Rb2+ {[%clk 0:00:04]} 48. Ka1 {[%clk 0:00:24]}  Nb4 {[%clk 0:00:04]} 49. Ra8 {[%clk 0:00:15]}  Nc2# {[%clk 0:00:02]} 0-1


[Site "https://www.chess.com"]

[Event "Titled Tuesday Blitz March 22 Early 2022"]
[White "Terry, Renato"]
[Black "Shuvalov, Evgenij"]
[WhiteFideId "3803457"]
[BlackFideId "4187237"]
[WhiteElo "2577"]
[BlackElo "2151"]
[Result "1-0"]
[Round "01"]
[TimeControl "180+1"]
[Date "2022.03.22"]
[WhiteClock "0:00:22"]
[BlackClock "0:00:10"]

1. e4 {[%clk 0:03:00]}  e6 {[%clk 0:02:58]} 2. d4 {[%clk 0:03:00]}  d5 {[%clk 0:02:58]} 3. exd5 {[%clk 0:03:00]}  exd5 {[%clk 0:02:58]} 4. Nf3 {[%clk 0:03:01]}  Nf6 {[%clk 0:02:57]} 5. Bd3 {[%clk 0:03:00]}  c5 {[%clk 0:02:57]} 6. dxc5 {[%clk 0:02:51]}  Bxc5 {[%clk 0:02:58]} 7. Qe2+ {[%clk 0:02:50]}  Be6 {[%clk 0:02:48]} 8. Be3 {[%clk 0:02:50]}  Bxe3 {[%clk 0:02:42]} 9. Qxe3 {[%clk 0:02:50]}  O-O {[%clk 0:02:41]} 10. O-O {[%clk 0:02:50]}  Nc6 {[%clk 0:02:40]} 11. Nbd2 {[%clk 0:02:35]}  d4 {[%clk 0:02:25]} 12. Qg5 {[%clk 0:02:24]}  h6 {[%clk 0:02:22]} 13. Qh4 {[%clk 0:02:17]}  Nd5 {[%clk 0:02:04]} 14. Qe4 {[%clk 0:02:16]}  Nf6 {[%clk 0:02:04]} 15. Qh4 {[%clk 0:02:15]}  Nd5 {[%clk 0:02:04]} 16. Qg3 {[%clk 0:02:15]}  Ndb4 {[%clk 0:01:58]} 17. Be4 {[%clk 0:01:43]}  f5 {[%clk 0:01:47]} 18. Bxc6 {[%clk 0:01:43]}  Nxc6 {[%clk 0:01:45]} 19. Ne5 {[%clk 0:01:25]}  f4 {[%clk 0:01:37]} 20. Nxc6 {[%clk 0:01:25]}  bxc6 {[%clk 0:01:38]} 21. Qd3 {[%clk 0:01:22]}  c5 {[%clk 0:01:30]} 22. Rfe1 {[%clk 0:01:22]}  Qd5 {[%clk 0:01:26]} 23. Qe4 {[%clk 0:01:14]}  Rf6 {[%clk 0:01:00]} 24. Qxd5 {[%clk 0:01:10]}  Bxd5 {[%clk 0:01:01]} 25. Re5 {[%clk 0:01:11]}  Rd8 {[%clk 0:00:57]} 26. b3 {[%clk 0:01:10]}  Re6 {[%clk 0:00:51]} 27. Rae1 {[%clk 0:01:10]}  Kf7 {[%clk 0:00:50]} 28. Rf5+ {[%clk 0:01:03]}  Rf6 {[%clk 0:00:48]} 29. Ree5 {[%clk 0:01:01]}  Be6 {[%clk 0:00:26]} 30. Rxf6+ {[%clk 0:01:01]}  Kxf6 {[%clk 0:00:27]} 31. Rxc5 {[%clk 0:01:01]}  Bf5 {[%clk 0:00:24]} 32. g3 {[%clk 0:00:51]}  fxg3 {[%clk 0:00:23]} 33. fxg3 {[%clk 0:00:47]}  Re8 {[%clk 0:00:23]} 34. Kf2 {[%clk 0:00:47]}  Re3 {[%clk 0:00:22]} 35. Nf3 {[%clk 0:00:44]}  Rc3 {[%clk 0:00:20]} 36. Rxc3 {[%clk 0:00:44]}  dxc3 {[%clk 0:00:21]} 37. Nd4 {[%clk 0:00:45]}  Be4 {[%clk 0:00:19]} 38. Ke3 {[%clk 0:00:45]}  Ke5 {[%clk 0:00:19]} 39. b4 {[%clk 0:00:45]}  a6 {[%clk 0:00:19]} 40. a3 {[%clk 0:00:45]}  g5 {[%clk 0:00:19]} 41. Ne2 {[%clk 0:00:45]}  Bxc2 {[%clk 0:00:18]} 42. Nxc3 {[%clk 0:00:46]}  Bf5 {[%clk 0:00:16]} 43. Na4 {[%clk 0:00:43]}  Bc8 {[%clk 0:00:14]} 44. Nc5 {[%clk 0:00:43]}  Kd5 {[%clk 0:00:14]} 45. Kd3 {[%clk 0:00:43]}  Ke5 {[%clk 0:00:14]} 46. a4 {[%clk 0:00:41]}  h5 {[%clk 0:00:14]} 47. a5 {[%clk 0:00:41]}  h4 {[%clk 0:00:14]} 48. Ke3 {[%clk 0:00:40]}  hxg3 {[%clk 0:00:14]} 49. hxg3 {[%clk 0:00:41]}  Kd5 {[%clk 0:00:13]} 50. Ne4 {[%clk 0:00:41]}  Kc4 {[%clk 0:00:12]} 51. Nd6+ {[%clk 0:00:42]}  Kxb4 {[%clk 0:00:12]} 52. Nxc8 {[%clk 0:00:43]}  Kxa5 {[%clk 0:00:13]} 53. Nd6 {[%clk 0:00:25]}  Kb4 {[%clk 0:00:12]} 54. Kd2 {[%clk 0:00:22]}  a5 {[%clk 0:00:11]} 55. Ne4 {[%clk 0:00:23]}  g4 {[%clk 0:00:10]} 56. Kc2 {[%clk 0:00:21]}  Kc4 {[%clk 0:00:09]} 57. Nf2 {[%clk 0:00:21]}  Kd4 {[%clk 0:00:09]} 58. Nxg4 {[%clk 0:00:22]}  Ke4 {[%clk 0:00:09]} 59. Nf2+ {[%clk 0:00:20]}  Kf3 {[%clk 0:00:09]} 60. g4 {[%clk 0:00:21]}  a4 {[%clk 0:00:10]} 61. Kb2 {[%clk 0:00:21]}  Kf4 {[%clk 0:00:10]} 62. Ka3 {[%clk 0:00:22]} 1-0


[Site "https://www.chess.com"]

[Event "Titled Tuesday Blitz March 22 Early 2022"]
[White "Topalov, Aleksandar"]
[Black "Dronavalli, Harika"]
[WhiteFideId "925659"]
[BlackFideId "5015197"]
[WhiteElo "2158"]
[BlackElo "2382"]
[Result "1-0"]
[Round "01"]
[TimeControl "180+1"]
[Date "2022.03.22"]
[WhiteClock "0:00:30"]
[BlackClock "0:00:07"]

1. b3 {[%clk 0:02:32]}  Nf6 {[%clk 0:02:58]} 2. Bb2 {[%clk 0:02:31]}  g6 {[%clk 0:02:58]} 3. Bxf6 {[%clk 0:02:30]}  exf6 {[%clk 0:02:58]} 4. c4 {[%clk 0:02:30]}  d5 {[%clk 0:02:53]} 5. cxd5 {[%clk 0:02:30]}  Qxd5 {[%clk 0:02:53]} 6. Nc3 {[%clk 0:02:30]}  Qd8 {[%clk 0:02:53]} 7. e3 {[%clk 0:02:24]}  c6 {[%clk 0:02:52]} 8. Nf3 {[%clk 0:02:23]}  Bg7 {[%clk 0:02:43]} 9. Be2 {[%clk 0:02:11]}  O-O {[%clk 0:02:41]} 10. O-O {[%clk 0:02:11]}  f5 {[%clk 0:02:41]} 11. d4 {[%clk 0:02:11]}  Nd7 {[%clk 0:02:41]} 12. b4 {[%clk 0:02:08]}  a6 {[%clk 0:02:23]} 13. Rb1 {[%clk 0:02:06]}  Nf6 {[%clk 0:02:19]} 14. Qc2 {[%clk 0:02:02]}  Be6 {[%clk 0:02:18]} 15. a4 {[%clk 0:02:00]}  Nd5 {[%clk 0:02:14]} 16. Nxd5 {[%clk 0:01:58]}  Bxd5 {[%clk 0:02:14]} 17. b5 {[%clk 0:01:55]}  cxb5 {[%clk 0:02:12]} 18. axb5 {[%clk 0:01:55]}  a5 {[%clk 0:02:13]} 19. b6 {[%clk 0:01:52]}  a4 {[%clk 0:02:06]} 20. Qc7 {[%clk 0:01:50]}  a3 {[%clk 0:02:00]} 21. Rfc1 {[%clk 0:01:43]}  Re8 {[%clk 0:01:14]} 22. Bc4 {[%clk 0:01:38]}  Bxc4 {[%clk 0:01:03]} 23. Rxc4 {[%clk 0:01:35]}  f4 {[%clk 0:00:56]} 24. Qxf4 {[%clk 0:01:20]}  a2 {[%clk 0:00:54]} 25. Ra1 {[%clk 0:01:20]}  Qxb6 {[%clk 0:00:54]} 26. Rcc1 {[%clk 0:01:08]}  Qb2 {[%clk 0:00:53]} 27. Qc7 {[%clk 0:00:54]}  Rec8 {[%clk 0:00:31]} 28. Qxc8+ {[%clk 0:00:53]}  Rxc8 {[%clk 0:00:32]} 29. Rxc8+ {[%clk 0:00:53]}  Bf8 {[%clk 0:00:32]} 30. Rcc1 {[%clk 0:00:52]}  Bb4 {[%clk 0:00:30]} 31. Ne1 {[%clk 0:00:50]}  Bc3 {[%clk 0:00:21]} 32. Nd3 {[%clk 0:00:46]}  Qd2 {[%clk 0:00:15]} 33. Rd1 {[%clk 0:00:38]}  Qc2 {[%clk 0:00:12]} 34. Rac1 {[%clk 0:00:32]}  Qb2 {[%clk 0:00:08]} 35. Nxb2 {[%clk 0:00:31]}  Bxb2 {[%clk 0:00:09]} 36. Ra1 {[%clk 0:00:30]}  Bxa1 {[%clk 0:00:07]} 37. Rxa1 {[%clk 0:00:29]}  b5 {[%clk 0:00:07]} 38. Rxa2 {[%clk 0:00:29]}  b4 {[%clk 0:00:08]} 39. Rb2 {[%clk 0:00:30]}  Kf8 {[%clk 0:00:07]} 40. Rxb4 {[%clk 0:00:30]} 1-0


[Site "https://www.chess.com"]

[Event "Titled Tuesday Blitz March 22 Early 2022"]
[White "Tsydypov, Zhamsaran"]
[Black "Alinasab, Mobina"]
[WhiteFideId "4108566"]
[BlackFideId "12528897"]
[WhiteElo "2614"]
[BlackElo "2052"]
[Result "1-0"]
[Round "01"]
[TimeControl "180+1"]
[Date "2022.03.22"]
[WhiteClock "0:01:13"]
[BlackClock "0:00:02"]

1. Nf3 {[%clk 0:03:00]}  Nf6 {[%clk 0:02:59]} 2. b3 {[%clk 0:02:59]}  b6 {[%clk 0:02:58]} 3. Bb2 {[%clk 0:02:59]}  e6 {[%clk 0:02:59]} 4. g3 {[%clk 0:02:59]}  Bb7 {[%clk 0:03:00]} 5. Bg2 {[%clk 0:02:59]}  Be7 {[%clk 0:03:01]} 6. O-O {[%clk 0:03:00]}  O-O {[%clk 0:03:01]} 7. c4 {[%clk 0:03:00]}  c5 {[%clk 0:03:02]} 8. d4 {[%clk 0:03:00]}  cxd4 {[%clk 0:03:03]} 9. Qxd4 {[%clk 0:03:00]}  d6 {[%clk 0:03:03]} 10. Rd1 {[%clk 0:02:58]}  Qc7 {[%clk 0:03:02]} 11. Nc3 {[%clk 0:02:57]}  a6 {[%clk 0:03:02]} 12. Ba3 {[%clk 0:02:57]}  Rd8 {[%clk 0:03:01]} 13. Rac1 {[%clk 0:02:56]}  Nc6 {[%clk 0:02:42]} 14. Qf4 {[%clk 0:02:55]}  Ne5 {[%clk 0:02:42]} 15. e4 {[%clk 0:02:52]}  Nfd7 {[%clk 0:02:30]} 16. Nd4 {[%clk 0:02:44]}  Nf6 {[%clk 0:02:23]} 17. h3 {[%clk 0:02:40]}  Rac8 {[%clk 0:02:23]} 18. Qe3 {[%clk 0:02:40]}  Qb8 {[%clk 0:02:21]} 19. Nf3 {[%clk 0:02:31]}  Nxf3+ {[%clk 0:02:19]} 20. Bxf3 {[%clk 0:02:29]}  Nd7 {[%clk 0:01:58]} 21. Bg2 {[%clk 0:02:23]}  Ba8 {[%clk 0:01:57]} 22. Bb2 {[%clk 0:02:13]}  b5 {[%clk 0:01:54]} 23. cxb5 {[%clk 0:02:12]}  axb5 {[%clk 0:01:55]} 24. Ne2 {[%clk 0:02:10]}  b4 {[%clk 0:01:49]} 25. Nd4 {[%clk 0:02:02]}  Rxc1 {[%clk 0:01:44]} 26. Rxc1 {[%clk 0:02:01]}  Rc8 {[%clk 0:01:44]} 27. Rxc8+ {[%clk 0:01:53]}  Qxc8 {[%clk 0:01:45]} 28. Qd2 {[%clk 0:01:54]}  Qc5 {[%clk 0:01:21]} 29. Nc2 {[%clk 0:01:51]}  d5 {[%clk 0:01:17]} 30. exd5 {[%clk 0:01:49]}  Bxd5 {[%clk 0:01:01]} 31. Bxd5 {[%clk 0:01:46]}  exd5 {[%clk 0:00:59]} 32. Ne3 {[%clk 0:01:44]}  Bf6 {[%clk 0:00:49]} 33. Nf5 {[%clk 0:01:44]}  Bxb2 {[%clk 0:00:46]} 34. Qxb2 {[%clk 0:01:43]}  Nf6 {[%clk 0:00:42]} 35. Qe5 {[%clk 0:01:42]}  h6 {[%clk 0:00:22]} 36. Qd4 {[%clk 0:01:28]}  Qc1+ {[%clk 0:00:14]} 37. Kg2 {[%clk 0:01:28]}  Qc3 {[%clk 0:00:15]} 38. Qf4 {[%clk 0:01:21]}  Qd3 {[%clk 0:00:14]} 39. Ne7+ {[%clk 0:01:19]}  Kf8 {[%clk 0:00:13]} 40. Nc6 {[%clk 0:01:19]}  Qc3 {[%clk 0:00:05]} 41. Qb8+ {[%clk 0:01:17]}  Ne8 {[%clk 0:00:05]} 42. Qxb4+ {[%clk 0:01:17]}  Qxb4 {[%clk 0:00:06]} 43. Nxb4 {[%clk 0:01:18]}  d4 {[%clk 0:00:07]} 44. Kf3 {[%clk 0:01:18]}  Nc7 {[%clk 0:00:06]} 45. Ke4 {[%clk 0:01:18]}  Ne6 {[%clk 0:00:05]} 46. Nc6 {[%clk 0:01:18]}  Ke8 {[%clk 0:00:03]} 47. h4 {[%clk 0:01:17]}  Nc5+ {[%clk 0:00:04]} 48. Kxd4 {[%clk 0:01:17]}  Na6 {[%clk 0:00:04]} 49. b4 {[%clk 0:01:16]}  Kd7 {[%clk 0:00:05]} 50. b5 {[%clk 0:01:17]}  Nc7 {[%clk 0:00:04]} 51. a4 {[%clk 0:01:17]}  Na8 {[%clk 0:00:03]} 52. Kc5 {[%clk 0:01:17]}  Kc7 {[%clk 0:00:03]} 53. a5 {[%clk 0:01:17]}  f6 {[%clk 0:00:03]} 54. b6+ {[%clk 0:01:16]}  Kb7 {[%clk 0:00:03]} 55. Nd8+ {[%clk 0:01:14]}  Ka6 {[%clk 0:00:02]} 56. b7 {[%clk 0:01:13]} 1-0


[Site "https://www.chess.com"]

[Event "Titled Tuesday Blitz March 22 Early 2022"]
[White "Urazayev, Arystanbek"]
[Black "Garagulya, Konstantin"]
[WhiteFideId "13709810"]
[BlackFideId "4128931"]
[WhiteElo "2393"]
[BlackElo "2329"]
[Result "1-0"]
[Round "01"]
[TimeControl "180+1"]
[Date "2022.03.22"]
[WhiteClock "0:00:19"]
[BlackClock "0:00:16"]

1. e4 {[%clk 0:03:00]}  c5 {[%clk 0:02:56]} 2. Nf3 {[%clk 0:03:01]}  a6 {[%clk 0:02:54]} 3. c3 {[%clk 0:02:57]}  d5 {[%clk 0:02:54]} 4. exd5 {[%clk 0:02:58]}  Qxd5 {[%clk 0:02:55]} 5. d4 {[%clk 0:02:58]}  Nf6 {[%clk 0:02:55]} 6. Na3 {[%clk 0:02:54]}  cxd4 {[%clk 0:02:55]} 7. cxd4 {[%clk 0:02:43]}  e6 {[%clk 0:02:51]} 8. Nc4 {[%clk 0:02:41]}  Nbd7 {[%clk 0:02:47]} 9. Ne3 {[%clk 0:02:38]}  Qa5+ {[%clk 0:02:45]} 10. Bd2 {[%clk 0:02:38]}  Bb4 {[%clk 0:02:45]} 11. Bd3 {[%clk 0:02:33]}  O-O {[%clk 0:02:37]} 12. O-O {[%clk 0:02:32]}  Bxd2 {[%clk 0:02:36]} 13. Nxd2 {[%clk 0:02:33]}  b5 {[%clk 0:02:30]} 14. a4 {[%clk 0:02:32]}  bxa4 {[%clk 0:02:23]} 15. Rxa4 {[%clk 0:02:31]}  Qc7 {[%clk 0:02:21]} 16. d5 {[%clk 0:02:11]}  Nb6 {[%clk 0:02:00]} 17. Rh4 {[%clk 0:02:03]}  Nbxd5 {[%clk 0:02:00]} 18. Nxd5 {[%clk 0:02:04]}  exd5 {[%clk 0:02:00]} 19. Bxh7+ {[%clk 0:01:58]}  Nxh7 {[%clk 0:01:59]} 20. Qh5 {[%clk 0:01:59]}  f6 {[%clk 0:01:57]} 21. Qxh7+ {[%clk 0:01:58]}  Kf7 {[%clk 0:01:57]} 22. Nf3 {[%clk 0:01:37]}  Be6 {[%clk 0:01:53]} 23. Qh5+ {[%clk 0:01:34]}  Kg8 {[%clk 0:01:52]} 24. Nd4 {[%clk 0:01:27]}  Qd7 {[%clk 0:01:46]} 25. Re1 {[%clk 0:01:22]}  Rfe8 {[%clk 0:01:43]} 26. h3 {[%clk 0:01:09]}  Rac8 {[%clk 0:01:40]} 27. b3 {[%clk 0:00:50]}  Kf8 {[%clk 0:01:25]} 28. Re3 {[%clk 0:00:45]}  Bg8 {[%clk 0:01:11]} 29. Rf4 {[%clk 0:00:38]}  Qd6 {[%clk 0:01:07]} 30. g3 {[%clk 0:00:34]}  Rxe3 {[%clk 0:01:02]} 31. fxe3 {[%clk 0:00:35]}  Rc3 {[%clk 0:00:40]} 32. Kf2 {[%clk 0:00:31]}  Qe7 {[%clk 0:00:32]} 33. Qe2 {[%clk 0:00:28]}  Bh7 {[%clk 0:00:23]} 34. Qd2 {[%clk 0:00:24]}  Rc7 {[%clk 0:00:17]} 35. Qa5 {[%clk 0:00:20]}  Be4 {[%clk 0:00:16]} 36. Qxc7 {[%clk 0:00:19]} 1-0


[Site "https://www.chess.com"]

[Event "Titled Tuesday Blitz March 22 Early 2022"]
[White "Vine, Elzbieta"]
[Black "Kubicka, Anna"]
[WhiteFideId "1119320"]
[BlackFideId "1152254"]
[WhiteElo "1829"]
[BlackElo "2000"]
[Result "0-1"]
[Round "01"]
[TimeControl "180+1"]
[Date "2022.03.22"]
[WhiteClock "0:00:18"]
[BlackClock "0:01:34"]

1. e4 {[%clk 0:02:59]}  c5 {[%clk 0:02:58]} 2. Nf3 {[%clk 0:02:55]}  d6 {[%clk 0:02:58]} 3. d4 {[%clk 0:02:54]}  cxd4 {[%clk 0:02:59]} 4. Nxd4 {[%clk 0:02:54]}  Nf6 {[%clk 0:02:59]} 5. Nc3 {[%clk 0:02:54]}  a6 {[%clk 0:03:00]} 6. Bg5 {[%clk 0:02:52]}  Nbd7 {[%clk 0:02:58]} 7. f4 {[%clk 0:02:45]}  Qc7 {[%clk 0:02:57]} 8. Qf3 {[%clk 0:02:42]}  h6 {[%clk 0:02:56]} 9. Bh4 {[%clk 0:02:38]}  g5 {[%clk 0:02:55]} 10. fxg5 {[%clk 0:02:25]}  hxg5 {[%clk 0:02:56]} 11. Bg3 {[%clk 0:02:24]}  Nh5 {[%clk 0:02:37]} 12. O-O-O {[%clk 0:02:11]}  Nxg3 {[%clk 0:02:37]} 13. Qxg3 {[%clk 0:02:09]}  Ne5 {[%clk 0:02:35]} 14. Nd5 {[%clk 0:02:05]}  Qa5 {[%clk 0:02:29]} 15. Kb1 {[%clk 0:01:57]}  Bg4 {[%clk 0:02:27]} 16. Be2 {[%clk 0:01:28]}  Bxe2 {[%clk 0:02:26]} 17. Nxe2 {[%clk 0:01:27]}  Rc8 {[%clk 0:02:22]} 18. Qb3 {[%clk 0:01:09]}  b5 {[%clk 0:02:16]} 19. Nd4 {[%clk 0:01:06]}  Nc4 {[%clk 0:02:04]} 20. Kc1 {[%clk 0:00:58]}  g4 {[%clk 0:01:59]} 21. h3 {[%clk 0:00:56]}  Bh6+ {[%clk 0:01:58]} 22. Kb1 {[%clk 0:00:48]}  Nd2+ {[%clk 0:01:58]} 23. Rxd2 {[%clk 0:00:48]}  Bxd2 {[%clk 0:01:57]} 24. Nf5 {[%clk 0:00:42]}  Bg5 {[%clk 0:01:44]} 25. h4 {[%clk 0:00:32]}  Qd2 {[%clk 0:01:38]} 26. Rf1 {[%clk 0:00:18]}  Qxg2 {[%clk 0:01:34]} 0-1


[Site "https://www.chess.com"]

[Event "Titled Tuesday Blitz March 22 Early 2022"]
[White "pedro_nascimento85"]
[Black "Le Ruyet, Leopold"]
[BlackFideId "645923"]
[WhiteElo "2006"]
[BlackElo "2276"]
[Result "0-1"]
[Round "01"]
[TimeControl "180+1"]
[Date "2022.03.22"]
[WhiteClock "0:01:58"]
[BlackClock "0:01:48"]

1. d4 {[%clk 0:03:00]}  d5 {[%clk 0:02:59]} 2. c4 {[%clk 0:02:59]}  dxc4 {[%clk 0:03:00]} 3. Nf3 {[%clk 0:02:58]}  Nf6 {[%clk 0:02:59]} 4. e3 {[%clk 0:02:58]}  e6 {[%clk 0:02:59]} 5. Bxc4 {[%clk 0:02:58]}  a6 {[%clk 0:02:59]} 6. Nc3 {[%clk 0:02:58]}  b5 {[%clk 0:02:58]} 7. Be2 {[%clk 0:02:57]}  Bb7 {[%clk 0:02:58]} 8. O-O {[%clk 0:02:57]}  c5 {[%clk 0:02:56]} 9. dxc5 {[%clk 0:02:56]}  Qxd1 {[%clk 0:02:56]} 10. Rxd1 {[%clk 0:02:55]}  Bxc5 {[%clk 0:02:57]} 11. a3 {[%clk 0:02:52]}  Nbd7 {[%clk 0:02:54]} 12. b4 {[%clk 0:02:51]}  Be7 {[%clk 0:02:46]} 13. Bb2 {[%clk 0:02:50]}  O-O {[%clk 0:02:42]} 14. Nd2 {[%clk 0:02:48]}  Rfc8 {[%clk 0:02:37]} 15. Bf3 {[%clk 0:02:48]}  Bxf3 {[%clk 0:02:35]} 16. Nxf3 {[%clk 0:02:46]}  Nb6 {[%clk 0:02:31]} 17. Rac1 {[%clk 0:02:39]}  Nc4 {[%clk 0:02:30]} 18. Ba1 {[%clk 0:02:32]}  Nxa3 {[%clk 0:02:29]} 19. Ne5 {[%clk 0:02:29]}  Bxb4 {[%clk 0:02:26]} 20. Ne2 {[%clk 0:02:28]}  Nc4 {[%clk 0:02:13]} 21. Nxc4 {[%clk 0:02:27]}  Rxc4 {[%clk 0:02:13]} 22. Rxc4 {[%clk 0:02:26]}  bxc4 {[%clk 0:02:14]} 23. Rc1 {[%clk 0:02:26]}  Rc8 {[%clk 0:02:13]} 24. Bc3 {[%clk 0:02:25]}  Nd5 {[%clk 0:02:07]} 25. Bxb4 {[%clk 0:02:15]}  Nxb4 {[%clk 0:02:08]} 26. Nc3 {[%clk 0:02:12]}  Nd3 {[%clk 0:02:05]} 27. Ra1 {[%clk 0:02:11]}  Rc6 {[%clk 0:01:56]} 28. Kf1 {[%clk 0:02:07]}  g6 {[%clk 0:01:51]} 29. Ke2 {[%clk 0:02:04]}  Rb6 {[%clk 0:01:50]} 30. Ra2 {[%clk 0:01:58]}  Nc1+ {[%clk 0:01:48]} 0-1


[Site "https://www.chess.com"]